[Event "33rd ECCC Open 2017"]
[Site "Antalya"]
[Date "2017.10.13"]
[Round "6"]
[White "Longson, Sarah N"]
[Black "Sahin, Ozgun"]
[Result "0-1"]
[ECO "B27"]
[WhiteElo "2102"]
[BlackElo "2210"]
[Annotator "NA"]
[PlyCount "92"]
[EventType "team-tourn"]
[EventCountry "TUR"]
[SourceTitle "playchess.com"]
[Source "ChessBase"]
[SourceQuality "1"]
[WhiteTeam "3CS Oldham"]
[BlackTeam "Besiktas"]
[TimeControl "40/5400+30:1800+30"]

1. e4 {[%emt 0:00:30]} c5 {[%emt 0:03:00]} 2. Nf3 {[%emt 0:00:30]} g6 {[%emt 0:00:30]} 3. d4 {[%emt 0:00:00]} cxd4 {[%emt 0:00:30]} 4. Qxd4 {[%emt 0:00:00]} Nf6 {[%emt 0:00:00]} 5. Nc3 {[%emt 0:00:00]} Nc6 {[%emt 0:00:00]} 6. Qa4 {[%emt 0:00:00]} d6 {[%emt 0:00:00]} 7. e5 {[%emt 0:00:30]} dxe5 {[%emt 0:00:00]} 8. Nxe5 {[%emt 0:00:30]} Qd4 {[%emt 0:00:00] B27: Sizilianisch (Frühes Fianchetto)} (8... Bg7 9. Nxc6 bxc6 10. Qxc6+ Bd7 11. Qa6 O-O 12. Be2 Qc7 13. O-O Ng4 14. g3 Rab8 15. Qa3 Bd4 16. Bxg4 Bxg4 {½-½ (40) Saric,I (2621)-Vocaturo,D (2592) Helsingor 2017}) 9. Nxc6 {[%emt 0:02:30]} Qxa4 {[%emt 0:02:00]} 10. Nxa4 {[%emt 0:00:30]} bxc6 {[%emt 0:00:00]} 11. Be2 {[%emt 0:06:30]} Bf5 {[%emt 0:04:00]} 12. Bf3 {[%emt 0:01:30]} Nd5 {[%emt 0:03:30]} 13. c3 {[%emt 0:17:30]} O-O-O $146 {[%emt 0:03:30]} ({Vorgänger:} 13... e5 14. O-O Rc8 15. Re1 f6 16. b3 {½-½ (84) Sahl,S (2173)-Martinsen,S (2175) Norway 2017}) 14. O-O {[%emt 0:03:30]} f6 {[%emt 0:06:30]} 15. g4 {[%emt 0:18:30]} Bd3 {[%emt 0:06:30]} 16. Re1 {[%emt 0:01:30]} e5 {[%emt 0:08:30]} 17. g5 {[%emt 0:08:30]} Bc2 {[%emt 0:03:30]} 18. Bd1 {[%emt 0:02:30]} Bxd1 {[%emt 0:01:30]} 19. Rxd1 {[%emt 0:00:30]} f5 {[%emt 0:00:30]} 20. c4 $11 {[%emt 0:02:30]} Nf4 {[%emt 0:13:30]} 21. Rxd8+ {[%emt 0:01:30]} Kxd8 {[%emt 0:01:30]} 22. Be3 {[%emt 0:07:30]} Be7 {[%emt 0:02:30]} 23. Bxa7 {[%emt 0:02:30]} Bxg5 {[%emt 0:15:30]} 24. Bb8 {[%emt 0:10:55]} Nd3 {[%emt 0:01:30]} 25. Rd1 {[%emt 0:00:53]} e4 {[%emt 0:00:00]} 26. Be5 {[%emt 0:08:58]} Re8 {[%emt 0:00:00]} 27. Bd4 {[%emt 0:00:00]} Ke7 {[%emt 0:03:30]} 28. Bb6 {[%emt 0:01:37]} Rb8 {[%emt 0:02:30]} 29. b3 {[%emt 0:00:22]} h5 {[%emt 0:03:09]} 30. Kf1 {[%emt 0:01:18]} h4 {[%emt 0:01:24]} 31. h3 {[%emt 0:00:17]} Bf4 {[%emt 0:00:24]} 32. f3 {[%emt 0:00:33]} g5 {[%emt 0:01:15]} 33. fxe4 {[%emt 0:01:19]} fxe4 {[%emt 0:00:30]} 34. Bc5+ {[%emt 0:00:30]} Kf6 {[%emt 0:00:30]} 35. Bd4+ {[%emt 0:00:30]} Kf5 {[%emt 0:00:30]} 36. Nc5 {[%emt 0:00:30]} Rd8 {[%emt 0:00:30]} 37. Bg1 {[%emt 0:00:30]} Bc7 {[%emt 0:00:30]} 38. Nb7 {[%emt 0:00:03]} Ra8 {[%emt 0:12:26]} 39. Rd2 {[%emt 0:01:02]} Bf4 {[%emt 0:00:29]} 40. Rg2 {[%emt 0:00:00]} e3 {[%emt 0:01:23]} 41. c5 {[%emt 0:15:09]} Ke4 {[%emt 0:02:30]} 42. Nd6+ {[%emt 0:05:43]} Kf3 {[%emt 0:00:30]} 43. Nf5 {[%emt 0:00:22]} Rf8 {[%emt 0:06:30]} 44. Nxe3 {[%emt 0:04:03]} Bxe3 {[%emt 0:00:30]} 45. Bxe3 {[%emt 0:00:30]} Kxe3+ {[%emt 0:00:00]} 46. Kg1 {[%emt 0:00:00]} Nf4 {[%emt 0:00:00]} 0-1

[Event "33rd ECCC Open 2017"]
[Site "Antalya"]
[Date "2017.10.13"]
[Round "6"]
[White "Barrett, Stephen J"]
[Black "Baliasnyj, Timur"]
[Result "0-1"]
[ECO "A58"]
[WhiteElo "2101"]
[BlackElo "2218"]
[Annotator "NA"]
[PlyCount "110"]
[EventType "team-tourn"]
[EventCountry "TUR"]
[SourceTitle "playchess.com"]
[Source "ChessBase"]
[SourceQuality "1"]
[WhiteTeam "White Rose"]
[BlackTeam "MAKABI"]
[TimeControl "40/5400+30:1800+30"]

1. d4 {[%emt 0:00:30]} Nf6 {[%emt 0:01:00]} 2. c4 {[%emt 0:00:30]} c5 {[%emt 0:00:30]} 3. d5 {[%emt 0:00:00]} b5 {[%emt 0:00:30]} 4. cxb5 {[%emt 0:00:00]} a6 {[%emt 0:00:00]} 5. bxa6 {[%emt 0:00:30]} Bxa6 {[%emt 0:00:00]} 6. Nc3 {[%emt 0:00:30]} d6 {[%emt 0:00:00]} 7. f4 {[%emt 0:00:00]} g6 {[%emt 0:01:00]} 8. Nf3 {[%emt 0:00:00]} Bg7 {[%emt 0:00:30]} 9. e4 {[%emt 0:00:30]} Bxf1 {[%emt 0:00:00]} 10. Rxf1 {[%emt 0:00:00]} O-O {[%emt 0:10:00]} 11. Kf2 {[%emt 0:00:00]} e6 {[%emt 0:10:30] A58: Benko/Volga Gambit: Lines with 5 bxa6} 12. dxe6 {[%emt 0:06:30]} fxe6 {[%emt 0:00:30]} 13. Kg1 $146 {[%emt 0:00:30]} ({Predecessor:} 13. Ng5 Qd7 14. Kg1 d5 15. e5 Ne8 16. b3 Nc7 17. Na4 Qe7 18. Ba3 Nd7 19. Rc1 Bxe5 20. Nxe6 Nxe6 21. fxe5 {0-1 (34) Sobh,A (2160)-Hassan,S (2336) Cairo 2014}) 13... Nc6 {[%emt 0:01:30]} 14. h3 {[%emt 0:10:30]} Rb8 {[%emt 0:05:30]} 15. Rf2 {[%emt 0:11:30]} Nh5 {[%emt 0:10:30]} 16. Be3 {[%emt 0:02:30]} Nxf4 {[%emt 0:18:30]} 17. Qd2 {[%emt 0:01:30]} Nh5 {[%emt 0:00:30]} 18. Rd1 {[%emt 0:05:30]} Ne5 {[%emt 0:00:30]} 19. Qxd6 {[%emt 0:04:30]} Qxd6 {[%emt 0:01:30]} 20. Rxd6 {[%emt 0:00:30]} Nc4 {[%emt 0:00:30]} 21. Bxc5 {[%emt 0:11:30]} Rfc8 {[%emt 0:00:30]} 22. Rxe6 {[%emt 0:00:30]} Rxc5 {[%emt 0:00:30]} 23. Nd5 {[%emt 0:00:30]} Bxb2 {[%emt 0:10:30]} 24. g4 {[%emt 0:10:30]} Ng7 {[%emt 0:01:30]} 25. Rc6 {[%emt 0:13:30]} Rxc6 {[%emt 0:02:30]} 26. Ne7+ {[%emt 0:00:30]} Kh8 {[%emt 0:00:30]} 27. Nxc6 {[%emt 0:00:39]} Rf8 {[%emt 0:03:30]} 28. Ng5 {[%emt 0:06:05]} Rxf2 {[%emt 0:02:27]} 29. Kxf2 {[%emt 0:00:02]} Bc1 {[%emt 0:00:10]} 30. Nf3 {[%emt 0:03:04]} Ne6 {[%emt 0:00:39]} 31. h4 {[%emt 0:06:45]} Kg7 {[%emt 0:03:05]} 32. g5 {[%emt 0:01:36]} Bf4 {[%emt 0:01:31]} 33. Ne1 {[%emt 0:02:00]} Nc5 {[%emt 0:05:29]} 34. Kf3 {[%emt 0:00:19]} Bc7 {[%emt 0:00:00]} 35. Nc2 {[%emt 0:02:54]} Nd2+ {[%emt 0:02:45]} 36. Ke3 {[%emt 0:00:15]} Ndxe4 {[%emt 0:00:36]} 37. N2d4 {[%emt 0:00:08]} Nc3 {[%emt 0:02:42]} 38. Nb4 {[%emt 0:00:56]} Ba5 {[%emt 0:02:39]} 39. Ndc6 {[%emt 0:00:47]} Bc7 {[%emt 0:02:34]} 40. Kf3 {[%emt 0:00:00]} Nd7 {[%emt 0:02:53]} 41. Kg4 {[%emt 0:04:00]} Ne5+ {[%emt 0:01:30]} 42. Nxe5 {[%emt 0:01:30]} Bxe5 {[%emt 0:00:00]} 43. h5 {[%emt 0:02:30]} Bd6 {[%emt 0:00:00]} 44. Nd3 {[%emt 0:03:30]} Nxa2 {[%emt 0:01:30]} 45. Ne1 {[%emt 0:00:30]} Nb4 {[%emt 0:05:30]} 46. hxg6 {[%emt 0:02:48]} hxg6 {[%emt 0:00:30]} 47. Kf3 {[%emt 0:00:54]} Nc6 {[%emt 0:01:30]} 48. Ke4 {[%emt 0:02:23]} Ne7 {[%emt 0:00:30]} 49. Nf3 {[%emt 0:00:57]} Nf5 {[%emt 0:00:30]} 50. Kd5 {[%emt 0:00:54]} Bg3 {[%emt 0:00:30]} 51. Ke4 {[%emt 0:03:21]} Kf7 $19 {[%emt 0:00:30]} 52. Nd2 {[%emt 0:02:42]} Ke6 {[%emt 0:00:30]} 53. Nf3 {[%emt 0:01:25]} Nd6+ {[%emt 0:00:30]} 54. Kd4 {[%emt 0:00:48]} Kf5 {[%emt 0:01:30]} 55. Kd5 {[%emt 0:01:52]} Kg4 {[%emt 0:03:23]} 0-1

[Event "33rd ECCC Open 2017"]
[Site "Antalya"]
[Date "2017.10.13"]
[Round "6"]
[White "McHugh, Kevin"]
[Black "Thorarinsson, Pall A"]
[Result "1/2-1/2"]
[ECO "B08"]
[WhiteElo "2084"]
[BlackElo "2273"]
[Annotator "NA"]
[PlyCount "83"]
[EventType "team-tourn"]
[EventCountry "TUR"]
[SourceTitle "playchess.com"]
[Source "ChessBase"]
[SourceQuality "1"]
[WhiteTeam "Benildus"]
[BlackTeam "Viking"]
[TimeControl "40/5400+30:1800+30"]

1. e4 {[%emt 0:00:30]} g6 {[%emt 0:01:00]} 2. d4 {[%emt 0:00:30]} Bg7 {[%emt 0:00:00]} 3. Nf3 {[%emt 0:00:00]} d6 {[%emt 0:01:00]} 4. h3 {[%emt 0:00:00]} Nf6 {[%emt 0:03:30]} 5. Nc3 {[%emt 0:00:30]} O-O {[%emt 0:01:30]} 6. Bd3 {[%emt 0:01:30]} Na6 {[%emt 0:03:30] B08: Pirc Defence: Classical System} (6... Nc6 7. O-O e5 8. dxe5 Nxe5 9. Nxe5 dxe5 10. Bc4 Qe7 11. Bg5 c6 12. Qf3 h6 13. Bh4 Be6 14. Bxf6 Bxf6 15. Bxe6 Qxe6 16. Rfd1 h5 17. Rd3 Rfd8 {½-½ (42) Gaehwiler,G (2416)-Sergeev,V (2443) Marianske Lazne 2017}) 7. O-O {[%emt 0:02:30]} c5 {[%emt 0:01:30]} 8. Bxa6 {[%emt 0:08:30]} cxd4 {[%emt 0:02:30]} 9. Nxd4 {[%emt 0:02:30]} bxa6 {[%emt 0:00:30]} 10. Be3 {[%emt 0:00:30]} Bb7 {[%emt 0:00:30]} 11. f3 $146 {[%emt 0:00:00]} ({Predecessor:} 11. Qd3 Qc7 12. Rad1 Rac8 13. Bg5 Qc5 14. Be3 Qb4 15. Rb1 {0-1 (27) Valentin,D (2019)-Poisson,O (2162) France 2007}) 11... Nd7 {[%emt 0:07:30]} 12. Qd2 {[%emt 0:06:00]} Ne5 {[%emt 0:02:30]} 13. b3 {[%emt 0:00:30]} Re8 {[%emt 0:00:30]} 14. Rad1 {[%emt 0:04:30]} Rc8 {[%emt 0:04:30]} 15. Nce2 {[%emt 0:00:30]} Qc7 {[%emt 0:05:30]} 16. c4 {[%emt 0:00:30]} e6 {[%emt 0:02:30]} 17. Rc1 {[%emt 0:01:30]} Qb8 {[%emt 0:02:30]} 18. Nc3 {[%emt 0:02:30]} Rc7 {[%emt 0:03:30]} 19. Rfd1 {[%emt 0:09:30]} Ba8 {[%emt 0:08:30]} 20. Nde2 {[%emt 0:10:30]} Bf8 {[%emt 0:01:30]} 21. Nf4 {[%emt 0:08:30]} f5 {[%emt 0:05:30]} 22. exf5 {[%emt 0:03:30]} gxf5 {[%emt 0:00:30]} 23. Qf2 {[%emt 0:01:30]} Rg7 {[%emt 0:02:30]} 24. Kh1 {[%emt 0:00:30]} Ng6 {[%emt 0:03:30]} 25. Nxg6 {[%emt 0:00:30]} hxg6 {[%emt 0:00:00] [#]} 26. Bh6 $16 {[%emt 0:00:30]} Rh7 {[%emt 0:20:01]} 27. Bxf8 {[%emt 0:00:30]} Kxf8 {[%emt 0:00:50]} 28. Qg3 {[%emt 0:13:30]} Ke7 {[%emt 0:00:32]} 29. Rd3 {[%emt 0:00:30]} Kf6 {[%emt 0:10:21]} 30. Rxd6 {[%emt 0:03:32]} g5 {[%emt 0:00:49]} 31. Rcd1 {[%emt 0:02:08]} g4 {[%emt 0:02:40]} 32. fxg4 {[%emt 0:00:43]} Rxh3+ {[%emt 0:00:18]} 33. Qxh3 {[%emt 0:01:10]} Rh8 {[%emt 0:00:00]} 34. Qxh8+ {[%emt 0:02:52]} Qxh8+ {[%emt 0:00:01]} 35. Kg1 {[%emt 0:00:00]} Qh6 {[%emt 0:03:23]} 36. Re1 {[%emt 0:03:09]} Qf4 {[%emt 0:00:24]} 37. Rexe6+ {[%emt 0:02:47]} Kf7 {[%emt 0:00:42]} 38. Nd5 {[%emt 0:01:06]} Bxd5 {[%emt 0:00:29]} 39. cxd5 {[%emt 0:00:08]} Qc1+ {[%emt 0:00:19]} 40. Kf2 {[%emt 0:01:25]} Qd2+ {[%emt 0:30:30]} 41. Kf3 {[%emt 0:30:30]} fxg4+ {[%emt 0:00:30]} 42. Kg3 {[%emt 0:01:35]} 1/2-1/2

[Event "33rd ECCC Open 2017"]
[Site "Antalya"]
[Date "2017.10.14"]
[Round "6"]
[White "Millward, Kevin P"]
[Black "Manojlovic, Mihailo"]
[Result "0-1"]
[ECO "A48"]
[WhiteElo "2049"]
[BlackElo "1982"]
[Annotator "NA"]
[PlyCount "216"]
[EventType "team-tourn"]
[EventCountry "TUR"]
[SourceTitle "playchess.com"]
[Source "ChessBase"]
[SourceQuality "1"]
[WhiteTeam "Viking"]
[BlackTeam "Benildus"]
[TimeControl "40/5400+30:1800+30"]

1. d4 Nf6 2. Bf4 g6 3. Nf3 Bg7 4. e3 d6 5. Be2 c6 6. O-O O-O 7. h3 Qb6 {A48: 1 d4 Nf6 2 Nf3 g6: Torre, London and Colle Systems} (7... Nbd7 8. c4 Ne8 9. Nc3 Nc7 10. Bh2 b6 11. b4 Bb7 12. Qb3 e5 13. c5 exd4 14. cxd6 dxc3 15. dxc7 Qe7 16. Rac1 {½-½ (43) Grachev,B (2654)-Movsesian,S (2721) Moscow 2010}) 8. Nbd2 Nbd7 9. c3 Re8 10. Bh2 Qc7 11. a4 b6 12. Qb3 $146 ({Predecessor:} 12. a5 Bb7 13. b4 {1-0 (32) Zadymov,I (2089)-Nadstoga,W (1926) Poznan 2017}) 12... h6 13. Bc4 e6 14. Rad1 Bb7 15. Bd3 c5 16. Rfe1 Rac8 17. Qa2 Nb8 18. dxc5 Qxc5 19. Nb3 Qc7 20. Bb5 Red8 21. Be2 Nc6 22. Nbd4 Nxd4 23. Nxd4 a6 24. Bf3 Bxf3 25. Nxf3 Ne4 26. Nd2 Nc5 27. Nc4 Nb7 28. Nd2 Qc6 29. Nf3 Nc5 30. a5 bxa5 31. Qxa5 Rb8 32. Re2 Rb5 33. Qa2 d5 34. c4 Rb7 35. Red2 Rbd7 36. b4 Ne4 37. cxd5 Rxd5 38. Rxd5 exd5 39. Qb3 Nc3 40. Rd2 Nb5 41. Ne5 Qe6 42. Nd3 Nc3 43. Nc5 {[#]} Qf6 (43... Qe7 $1 $17 44. Nd3 (44. Nxa6 d4 $17) 44... d4 45. exd4 Bxd4) 44. Bc7 Re8 45. Kh2 h5 46. Na4 Qc6 47. Bf4 Qxa4 48. Qxa4 Nxa4 49. Rxd5 Bf8 50. Ra5 Nc3 51. Rxa6 Bxb4 52. Rc6 Nd5 53. Bg3 Re6 54. Rc8+ Kg7 55. Rd8 Nf6 56. Bf4 Ne4 57. f3 Nf6 58. e4 Bc3 59. Bg5 Be5+ 60. Kg1 (60. g3 {was forced.}) 60... Bg3 61. Kf1 Ra6 62. Ke2 Ra2+ 63. Ke3 Rxg2 64. f4 h4 65. e5 Nh5 66. Rd7 Rg1 67. Kf3 Rf1+ 68. Ke2 Re1+ 69. Kf3 Rf1+ 70. Ke2 Rf2+ 71. Ke3 Nxf4 72. Bf6+ Kh6 73. Rxf7 Nd5+ 74. Ke4 Nxf6+ 75. exf6 Kg5 76. Rb7 Rxf6 77. Rb5+ Rf5 78. Rb1 Re5+ 79. Kf3 Re1 80. Rb5+ Kh6 81. Rb4 Rf1+ 82. Kg4 Rf5 83. Rc4 Rg5+ 84. Kf3 Kh5 85. Rc2 Rf5+ 86. Kg2 Kg5 87. Kg1 Rf2 88. Rc5+ Kh6 89. Rc8 Rh2 90. Rc5 Rxh3 91. Kg2 Rh2+ 92. Kf3 Rf2+ 93. Kg4 Rf4+ 94. Kh3 g5 95. Rd5 g4+ 96. Kg2 Rf2+ 97. Kg1 Re2 98. Rb5 h3 99. Rb6+ Kh5 100. Rb5+ Kh4 101. Rb1 Re1+ 102. Rxe1 Bxe1 103. Kh2 Bc3 104. Kg1 g3 105. Kh1 g2+ 106. Kh2 Be5+ 107. Kg1 Bd4+ 108. Kh2 g1=Q# 0-1

[Event "33rd ECCC Open 2017"]
[Site "Antalya"]
[Date "2017.10.13"]
[Round "6"]
[White "Fox, Anthony"]
[Black "Georgakopoulos, Nikolaos K"]
[Result "0-1"]
[ECO "B26"]
[WhiteElo "2016"]
[BlackElo "2086"]
[Annotator "NA"]
[PlyCount "104"]
[EventType "team-tourn"]
[EventCountry "TUR"]
[SourceTitle "playchess.com"]
[Source "ChessBase"]
[SourceQuality "1"]
[WhiteTeam "Adare"]
[BlackTeam "Chania"]
[TimeControl "40/5400+30:1800+30"]

1. e4 {[%emt 0:00:30]} c5 {[%emt 0:01:00]} 2. Nc3 {[%emt 0:00:00]} Nc6 {[%emt 0:00:30]} 3. g3 {[%emt 0:00:00]} g6 {[%emt 0:00:00]} 4. Bg2 {[%emt 0:00:30]} Bg7 {[%emt 0:00:00]} 5. d3 {[%emt 0:00:30]} d6 {[%emt 0:00:00] LiveBook: 4442 Partien} 6. Nge2 {[%emt 0:00:30]} e6 {[%emt 0:00:00]} 7. O-O {[%emt 0:01:30]} Nge7 {[%emt 0:00:00]} 8. Bg5 {[%emt 0:01:30]} O-O {[%emt 0:02:00]} 9. Qd2 {[%emt 0:00:30]} Rb8 {[%emt 0:00:30]} 10. Bh6 {[%emt 0:00:30]} Nd4 {[%emt 0:01:30]} 11. Bxg7 {[%emt 0:00:30]} Kxg7 {[%emt 0:00:00]} 12. Nxd4 {[%emt 0:06:30]} cxd4 {[%emt 0:00:00]} 13. Ne2 {[%emt 0:00:30] B26: Closed Sicilian: 3 g3, lines with early Be3} e5 {[%emt 0:00:30]} 14. c3 {[%emt 0:00:00]} dxc3 {[%emt 0:02:30]} 15. bxc3 {[%emt 0:06:00]} Be6 {[%emt 0:05:30]} 16. f4 {[%emt 0:00:30]} f6 {[%emt 0:02:30]} 17. Rab1 $146 {[%emt 0:04:30]} ({Predecessor:} 17. Rf2 Qa5 18. h4 Bg4 19. Bf3 Bxf3 20. Rxf3 {0-1 (52) Pihlajasalo,A (2441)-Barbosa,O (2435) ICC INT 2009}) 17... Qa5 {[%emt 0:07:30]} 18. Rb2 {[%emt 0:02:30]} b6 {[%emt 0:01:30]} 19. h3 $15 {[%emt 0:03:30]} Rbc8 {[%emt 0:00:30]} 20. g4 {[%emt 0:01:30]} Bg8 {[%emt 0:02:30]} 21. Qe3 {[%emt 0:08:30]} Nc6 {[%emt 0:12:30]} 22. f5 {[%emt 0:13:30]} g5 {[%emt 0:03:30]} 23. Rfb1 {[%emt 0:02:30]} Rfd8 {[%emt 0:01:30]} 24. c4 {[%emt 0:03:30]} Qa3 {[%emt 0:06:30]} 25. Kf2 {[%emt 0:01:30]} Na5 {[%emt 0:03:30]} 26. Rc2 {[%emt 0:02:30]} Nb7 {[%emt 0:03:30]} 27. Rb3 {[%emt 0:03:30]} Qa6 {[%emt 0:01:30]} 28. Nc3 {[%emt 0:06:30]} Nc5 {[%emt 0:00:30]} 29. Rbb2 {[%emt 0:01:30]} Bf7 {[%emt 0:04:30]} 30. Bf3 {[%emt 0:03:30]} h6 {[%emt 0:00:30]} 31. Kg3 {[%emt 0:04:30]} Qa3 {[%emt 0:10:30]} 32. Kf2 {[%emt 0:03:36]} Be8 {[%emt 0:01:30]} 33. Be2 {[%emt 0:01:43]} Bc6 {[%emt 0:01:30]} 34. Nb1 {[%emt 0:05:49]} Qa6 {[%emt 0:00:30]} 35. Nc3 {[%emt 0:00:26]} Qb7 {[%emt 0:00:30]} 36. Nd5 {[%emt 0:00:59]} Na4 {[%emt 0:06:30]} 37. Rb1 {[%emt 0:00:46]} Bxd5 {[%emt 0:00:30]} 38. exd5 {[%emt 0:00:18]} Nc5 {[%emt 0:00:30]} 39. Bf3 {[%emt 0:05:35]} Qd7 {[%emt 0:02:39]} 40. Rb5 {[%emt 0:00:00]} Re8 {[%emt 0:01:21]} 41. Be4 {[%emt 0:06:48]} Nxe4+ {[%emt 0:02:30]} 42. Qxe4 {[%emt 0:01:30]} Qxb5 {[%emt 0:00:30]} 43. cxb5 {[%emt 0:00:30]} Rxc2+ {[%emt 0:00:00]} 44. Ke3 {[%emt 0:01:30]} Rec8 {[%emt 0:00:00]} 45. Qb4 {[%emt 0:02:30]} R2c5 {[%emt 0:00:30]} 46. Ke4 {[%emt 0:01:30]} Kf7 {[%emt 0:00:30]} 47. a4 {[%emt 0:00:30]} Ke7 {[%emt 0:00:30]} 48. h4 {[%emt 0:00:00]} Rc1 {[%emt 0:03:30]} 49. hxg5 {[%emt 0:01:00]} hxg5 {[%emt 0:00:30]} 50. Qb2 {[%emt 0:05:30]} R8c2 {[%emt 0:02:30]} 51. Qb3 {[%emt 0:01:57]} Rf2 {[%emt 0:00:30]} 52. Ke3 {[%emt 0:00:22]} Rcc2 {[%emt 0:00:00]} 0-1

[Event "33rd ECCC Open 2017"]
[Site "Antalya"]
[Date "2017.10.13"]
[Round "6"]
[White "Mahmuti, Ajet"]
[Black "Vihinen, Teemu"]
[Result "0-1"]
[ECO "C03"]
[WhiteElo "1981"]
[BlackElo "2164"]
[Annotator "NA"]
[PlyCount "64"]
[EventType "team-tourn"]
[EventCountry "TUR"]
[SourceTitle "playchess.com"]
[Source "ChessBase"]
[SourceQuality "1"]
[WhiteTeam "Dardania"]
[BlackTeam "Etela-Vantaan"]
[TimeControl "40/5400+30:1800+30"]

1. e4 {[%emt 0:00:30]} e6 {[%emt 0:01:00]} 2. d4 {[%emt 0:00:00]} d5 {[%emt 0:00:00]} 3. Nd2 {[%emt 0:01:00]} h6 {[%emt 0:01:00]} 4. Ngf3 {[%emt 0:00:30]} Nf6 {[%emt 0:00:30]} 5. e5 {[%emt 0:00:30]} Nfd7 {[%emt 0:00:30]} 6. c3 {[%emt 0:00:30]} c5 {[%emt 0:00:00]} 7. Bd3 {[%emt 0:00:00]} Nc6 {[%emt 0:00:00]} 8. O-O {[%emt 0:00:00]} g5 {[%emt 0:00:30]} 9. Bb5 {[%emt 0:06:30]} cxd4 {[%emt 0:09:30]} 10. Nxd4 {[%emt 0:15:30]} Qb6 {[%emt 0:18:30]} 11. Bxc6 $17 {[%emt 0:05:30]} (11. N2b3 $1 $14 {stays ahead.}) 11... bxc6 {[%emt 0:01:30]} 12. Re1 {[%emt 0:04:30]} Bg7 {[%emt 0:16:30]} 13. f4 {[%emt 0:13:30]} c5 {[%emt 0:10:30]} 14. N4b3 {[%emt 0:01:30]} a5 {[%emt 0:01:30]} 15. a4 {[%emt 0:10:30]} Rb8 {[%emt 0:08:30]} 16. Ra3 {[%emt 0:00:00]} Ba6 {[%emt 0:03:30]} 17. Na1 {[%emt 0:05:00]} Bd3 {[%emt 0:07:00]} 18. Rb3 {[%emt 0:02:30]} Qa7 {[%emt 0:00:21]} 19. Rxb8+ {[%emt 0:00:30]} Nxb8 {[%emt 0:00:49]} 20. fxg5 {[%emt 0:05:30]} c4+ {[%emt 0:00:39]} 21. Kh1 {[%emt 0:00:30]} hxg5 {[%emt 0:00:26]} 22. Nf3 {[%emt 0:00:30]} g4 {[%emt 0:06:15]} 23. Nd4 {[%emt 0:00:30]} g3 {[%emt 0:02:11]} 24. h3 {[%emt 0:04:30]} Be4 {[%emt 0:00:29]} 25. Qg4 {[%emt 0:17:37]} Bxe5 {[%emt 0:00:44]} 26. Be3 {[%emt 0:00:47]} Qd7 {[%emt 0:03:56]} 27. Bf4 {[%emt 0:02:00]} Bxd4 {[%emt 0:03:17]} 28. cxd4 {[%emt 0:01:45]} Nc6 {[%emt 0:00:13]} 29. Bxg3 {[%emt 0:01:08]} f5 {[%emt 0:00:55]} 30. Qg6+ {[%emt 0:01:26]} Qf7 {[%emt 0:00:11]} 31. Qxf7+ {[%emt 0:00:08]} Kxf7 {[%emt 0:00:08]} 32. Kh2 {[%emt 0:00:34]} Rg8 {[%emt 0:00:56]} 0-1